bitfinex/quotes_ETHUSD_20240719
["timestamp","ask_amount","ask_price","bid_price","bid_amount"]
[1721397242935,1.21915436,3438.0,3437.4,2.90917]
[1721397243170,1.21915436,3438.0,3437.5,2.4588]
[1721397243371,1.21915436,3437.9,3437.5,5.36786]
[1721397243571,1.21915436,3438.1,3437.5,5.36786]
[1721397243777,1.21915436,3438.1,3437.3,0.55]
[1721397244137,1.21915436,3438.1,3437.4,2.90914]
[1721397244671,1.21915436,3438.1,3437.5,2.90907]
[1721397244888,1.21915436,3438.1,3437.3,3.45921]
[1721397244889,2.10717354,3438.1,3437.3,3.45921]
[1721397245177,1.21915436,3438.0,3437.4,2.90916]
[1721397245474,1.21915436,3438.0,3437.5,2.90908]
[1721397245685,1.21915436,3438.0,3437.3,3.45921]
[1721397245869,2.90877,3437.9,3437.0,2.90948]
[1721397246067,2.1214968,3437.8,3437.0,2.90948]
[1721397246236,2.49,3437.7,3436.6,7.768163]
[1721397246443,4.12816436,3437.6,3436.6,7.768163]
[1721397246742,4.01474041,3437.7,3436.3,2.4983]
[1721397246743,5.39927,3437.3,3436.3,2.4983]
[1721397246976,5.39966,3436.9,3435.9,10.24038]
[1721397247376,1.21915436,3436.8,3435.9,10.24038]
[1721397247987,1.21915436,3436.8,3435.9,7.33]
[1721397248291,1.21915436,3437.1,3436.3,2.91008]
[1721397248449,1.21915436,3437.1,3435.9,10.24043]
[1721397248450,4.12880436,3436.9,3435.9,10.24043]
[1721397248646,1.21915436,3436.8,3435.9,7.33]
[1721397248872,1.21915436,3436.9,3436.2,2.91011]
[1721397249288,1.52474041,3437.1,3435.9,7.33]
[1721397249289,1.21915436,3437.0,3435.9,7.33]
[1721397249464,1.21915436,3437.0,3436.0,0.05819781]
[1721397249780,7.73863931,3437.5,3436.4,2.90999]
[1721397249781,1.21915436,3437.1,3436.4,2.90999]
[1721397250090,1.21915436,3437.1,3436.6,2.90982]
[1721397250388,3.0,3437.2,3436.4,2.91001]
[1721397250389,4.21915436,3437.2,3436.4,2.91001]
[1721397250682,4.21915436,3437.2,3436.1,2.91024]
[1721397250683,1.21915436,3436.9,3436.1,2.91024]
[1721397250899,1.21915436,3437.0,3436.1,2.91024]
[1721397251051,1.21915436,3437.0,3436.1,4.225302]
[1721397251251,7.01461609,3437.2,3435.5,2.91073]
[1721397251252,1.21915436,3437.1,3435.5,2.91073]
[1721397251477,5.49,3437.2,3435.5,2.91073]
[1721397251478,6.70915436,3437.2,3435.5,2.91073]
[1721397251700,2.90952,3437.0,3436.1,2.91024]
[1721397252074,1.21915436,3437.1,3435.5,2.9107]
[1721397252281,4.12858436,3437.1,3436.2,2.91012]
[1721397252475,1.11425412,3437.0,3436.2,2.91012]
[1721397253457,4.12858436,3437.1,3435.7,0.55]
[1721397253458,1.21915436,3437.1,3436.4,2.90996]
[1721397253860,1.21915436,3437.1,3436.1,2.91025]
[1721397254090,1.21915436,3437.0,3435.9,2.91043]
[1721397254252,5.40003,3436.4,3435.1,2.91103]
[1721397254451,2.49,3436.4,3435.5,2.91075]
[1721397254689,2.49,3436.4,3435.6,2.91069]
[1721397254896,1.21915436,3436.6,3435.8,2.91051]
[1721397255201,1.21915436,3436.7,3436.3,2.91003]
[1721397255495,5.49,3437.2,3436.2,2.91018]
[1721397255496,1.21915436,3436.9,3436.2,2.91018]
[1721397256261,2.33337812,3436.9,3436.2,2.91018]
[1721397256775,1.11422376,3436.9,3436.2,2.91018]
[1721397256986,2.33337812,3436.9,3436.2,2.91018]
[1721397257380,2.33337812,3436.9,3436.1,2.91026]
[1721397258377,2.33337812,3436.9,3435.8,2.2796]
[1721397258378,2.90985,3436.6,3435.6,2.91067]
[1721397258591,2.90985,3436.6,3435.7,2.91061]
[1721397258904,1.21657147,3436.6,3435.8,2.91051]
[1721397259581,4.12647147,3436.6,3435.6,2.91065]
[1721397259771,2.49,3436.4,3435.2,3.202073]
[1721397260098,2.91016,3436.3,3435.2,3.202073]
[1721397260264,2.91016,3436.3,3435.3,2.91093]
[1721397260463,3.85930242,3436.3,3435.3,2.91093]
[1721397260979,0.94914242,3436.3,3435.5,2.91072]
[1721397261301,0.94914242,3436.3,3435.2,0.291103]
[1721397261302,1.21915436,3436.5,3435.8,2.91052]
[1721397261488,3.0,3436.6,3435.9,2.3453]
[1721397261796,1.21915436,3436.9,3435.7,2.91056]
[1721397261797,2.90983,3436.7,3435.7,2.91056]
[1721397261989,3.0,3436.6,3435.8,2.91052]
[1721397262183,5.90985,3436.6,3435.8,2.91052]
[1721397262362,1.00387544,3436.5,3435.8,2.91052]
[1721397263426,1.00387544,3436.5,3435.3,2.91094]
[1721397263591,5.26593,3436.4,3435.4,2.91081]
[1721397263994,2.3559,3436.4,3435.4,2.91086]
[1721397264194,2.3559,3436.4,3435.6,2.91064]
[1721397264429,1.33987398,3436.3,3435.6,2.91064]
[1721397264594,3.91383544,3436.5,3435.6,2.91064]
[1721397264794,3.91383544,3436.5,3435.7,2.91061]
[1721397264795,1.00387544,3436.5,3435.7,2.91061]
[1721397265341,5.90985,3436.6,3435.7,2.91061]
[1721397265342,3.0,3436.6,3435.8,2.91047]
[1721397265511,3.0,3436.7,3435.8,2.91047]
[1721397265712,4.8974,3436.8,3436.0,2.91035]
[1721397266039,4.8974,3436.8,3435.9,2.91041]
[1721397266193,0.780691,3436.7,3435.9,2.91041]
[1721397266409,2.49,3436.8,3435.9,2.91041]
[1721397266808,2.90976,3436.7,3435.7,2.91059]
[1721397267016,2.49,3436.4,3435.3,10.24093]
[1721397267214,2.91019,3436.2,3435.3,2.91093]
[1721397267528,5.40002,3436.4,3435.4,2.91084]
[1721397267695,3.987338,3436.3,3435.2,2.91098]
[1721397267898,3.937338,3436.3,3435.2,2.91098]
[1721397268128,5.40002,3436.4,3435.4,2.91086]
[1721397268328,2.49,3436.4,3435.5,2.91073]
[1721397269117,5.40002,3436.4,3435.5,2.91073]
[1721397269315,2.4434,3436.2,3435.4,2.91086]
[1721397269501,2.4434,3436.2,3435.5,2.91077]
[1721397269808,1.21915436,3436.7,3435.7,2.91055]
[1721397269809,4.12897436,3436.7,3435.7,2.91055]
[1721397270005,3.0,3436.6,3435.7,2.91055]
[1721397270208,5.90989,3436.6,3435.7,2.91055]
[1721397270501,2.90993,3436.5,3435.5,2.91077]
[1721397270713,3.0,3436.6,3435.4,2.91085]
[1721397271044,3.0,3436.6,3435.7,2.9106]
[1721397271238,2.90994,3436.5,3435.5,3.201805]
[1721397271429,3.0,3436.6,3435.9,2.91039]
[1721397271631,3.0,3436.7,3435.9,2.91039]
[1721397272043,4.9334,3436.8,3436.1,2.91025]
[1721397272340,4.9334,3436.8,3436.2,2.91018]
[1721397272548,1.21915436,3437.2,3436.4,2.91]
[1721397272549,4.949,3437.2,3436.4,2.91]
[1721397274039,4.949,3437.2,3436.5,2.90993]
[1721397274209,2.49,3437.2,3436.5,2.90993]
[1721397275533,2.49,3437.2,3436.6,2.90985]
[1721397276026,2.49,3437.2,3436.7,2.90975]
[1721397277020,2.49,3437.2,3436.6,0.581993]
[1721397277228,2.49,3437.2,3436.3,2.91007]
[1721397277545,5.39936,3437.2,3436.3,2.91007]
[1721397277741,2.90948,3437.1,3436.1,2.91024]
[1721397277915,2.90951,3437.0,3436.1,2.91024]
[1721397278117,5.39936,3437.2,3436.2,2.91018]
[1721397278341,5.39936,3437.2,3436.3,0.291018]
[1721397278742,2.49,3437.2,3436.3,0.291018]
[1721397279046,2.49,3437.2,3436.5,2.90987]
[1721397279470,4.12824436,3437.5,3436.6,2.90979]
[1721397279627,5.90909,3437.5,3436.6,2.90979]
[1721397280161,2.90918,3437.4,3436.6,2.90985]
[1721397280827,3.0,3437.5,3436.7,2.90976]
[1721397281231,2.90917,3437.4,3436.5,2.90993]
[1721397281575,2.9094,3437.2,3436.3,2.91009]
[1721397282426,2.9094,3437.2,3436.4,2.91001]
[1721397282631,4.12837436,3437.4,3436.4,2.91001]
[1721397282860,2.90931,3437.3,3436.4,2.91001]
[1721397283559,7.43151391,3437.5,3436.4,2.91001]
[1721397283560,7.12827436,3437.5,3436.4,2.91001]
[1721397283961,7.12827436,3437.5,3436.6,2.90984]
[1721397284467,4.12833436,3437.4,3436.5,2.90991]
[1721397284625,1.21915436,3437.3,3436.5,2.90991]
[1721397285158,4.12833436,3437.4,3436.6,2.90985]
[1721397285834,4.21915436,3437.5,3436.8,2.90967]
[1721397286037,3.0,3437.5,3436.8,2.90967]
[1721397286237,3.70915436,3437.6,3436.8,2.90967]
[1721397286551,1.21915436,3437.5,3436.9,2.90958]
[1721397286794,1.21915436,3437.6,3436.9,2.90958]
[1721397287064,1.21915436,3437.7,3437.0,2.9095]
[1721397287268,1.21915436,3437.8,3437.0,2.9095]
[1721397287466,1.21915436,3438.0,3437.1,0.55]
[1721397287672,1.21915436,3438.1,3437.3,2.90919]
[1721397287872,1.21915436,3438.2,3437.4,3.546021]
[1721397288292,1.21915436,3438.2,3437.5,2.90908]
[1721397288789,1.56539231,3438.5,3438.0,2.90865]
[1721397288960,0.34623795,3438.5,3438.0,2.90865]
[1721397290850,0.34623795,3438.5,3438.1,2.90856]
[1721397291093,0.34623795,3438.5,3438.2,0.290856]
[1721397291468,0.34623795,3438.5,3438.4,2.90832]
[1721397292104,0.34623795,3438.5,3438.2,0.290856]
[1721397292252,0.34623795,3438.5,3438.2,3.199336]
[1721397292457,0.34623795,3438.5,3438.3,2.90841]
[1721397292695,0.34623795,3438.5,3438.4,3.2282466]
[1721397292995,0.34623795,3438.5,3438.4,0.3199266]
[1721397293673,0.34623795,3438.5,3438.4,3.2282466]
[1721397294009,0.34623795,3438.5,3438.4,6.1365666]
[1721397294228,0.34623795,3438.5,3438.4,6.2251466]
[1721397294408,0.34623795,3438.5,3438.4,9.1334666]
[1721397294720,0.34623795,3438.5,3438.4,6.2251466]
[1721397294885,0.34623795,3438.5,3438.4,9.1334666]
[1721397296409,0.34623795,3438.5,3438.4,6.6865666]
[1721397298420,0.34623795,3438.5,3438.4,9.5948866]
[1721397298576,0.34623795,3438.5,3438.4,11.9953866]
[1721397298973,0.34623795,3438.5,3438.4,20.9747066]
[1721397299199,2.2862,3440.4,3439.5,2.90735]
[1721397299376,5.19285,3440.4,3439.5,2.90735]
[1721397299774,5.19285,3440.4,3439.3,2.90751]
[1721397300009,5.19285,3440.4,3439.4,2.90742]
[1721397300172,2.90673,3440.3,3439.4,2.90742]
[1721397300513,2.2862,3440.4,3439.7,2.90717]
[1721397300724,8.39644,3440.7,3439.5,2.90737]
[1721397300725,5.90648,3440.6,3439.5,2.90737]
[1721397300941,5.90648,3440.6,3439.0,2.90781]
[1721397300942,1.39679484,3440.5,3439.6,2.90731]
[1721397301090,4.39679484,3440.5,3439.7,0.55]
[1721397301291,1.39679484,3440.5,3439.8,2.90706]
[1721397301486,1.39679484,3440.5,3439.7,0.55]
[1721397301487,1.39679484,3440.5,3439.7,3.45722]
[1721397301788,4.39679484,3440.5,3439.7,3.45722]
[1721397302234,2.5714684,3440.8,3439.7,0.55]
[1721397302512,2.5714684,3440.8,3440.2,2.90674]
[1721397302513,0.2024684,3440.8,3440.2,2.90674]
[1721397303115,0.2024684,3440.8,3439.8,2.3807]
[1721397303116,0.2024684,3440.8,3440.0,2.90696]
[1721397303437,3.1087884,3440.8,3439.7,2.90722]
[1721397303732,3.1087884,3440.8,3439.2,10.2376]
[1721397303733,2.90647,3440.6,3439.6,2.90729]
[1721397304026,2.90647,3440.6,3439.2,7.33]
[1721397304027,0.2024684,3440.8,3439.9,2.90705]
[1721397304241,3.1087784,3440.8,3439.9,2.90705]
[1721397304797,4.8406,3440.7,3439.2,10.23758]
[1721397305012,4.8406,3440.7,3438.3,2.3486]
[1721397305013,2.90665,3440.4,3438.7,2.90803]
[1721397305197,2.90673,3440.3,3439.3,2.9075]
[1721397305928,2.90673,3440.3,3439.1,2.90772]
[1721397305929,2.90655,3440.5,3438.9,2.9079]
[1721397306113,7.74699,3440.7,3439.8,2.90711]
[1721397306114,2.3506,3440.7,3439.8,2.90711]
[1721397306320,5.80292684,3440.7,3439.8,2.90711]
[1721397306502,0.2024684,3440.8,3439.9,2.90705]
[1721397306709,0.2024684,3440.8,3439.7,2.90721]
[1721397306912,2.90647,3440.6,3439.8,0.55]
[1721397307440,3.1088184,3440.8,3439.8,0.55]
[1721397307643,3.1088184,3440.8,3439.8,0.895721]
[1721397307836,2.90638,3440.7,3439.9,2.90704]
[1721397308009,0.2024684,3440.8,3439.8,0.895721]
[1721397308207,2.90647,3440.6,3439.8,0.55]
[1721397308413,0.2024684,3440.8,3439.8,0.55]
[1721397308754,0.2024684,3440.8,3439.9,2.3664]
[1721397308901,0.2024684,3440.8,3440.0,0.55]
[1721397309101,0.2024684,3440.8,3440.0,3.45693]
[1721397309296,0.2024684,3440.8,3440.0,0.55]
[1721397309838,0.2024684,3440.8,3439.2,2.90763]
[1721397309839,2.2669,3440.3,3439.2,2.90763]
[1721397310000,0.2024684,3440.8,3439.8,2.90707]
[1721397310001,3.1087884,3440.8,3439.8,2.90707]
[1721397310193,2.90654,3440.6,3439.6,2.90725]
[1721397310397,3.1087684,3440.8,3439.8,2.90707]
[1721397310748,0.2024684,3440.8,3440.1,2.90688]
[1721397311333,2.90647,3440.6,3439.6,2.90728]
[1721397311493,0.55592384,3440.5,3439.4,2.90741]
[1721397311694,7.84674,3440.7,3439.7,2.90722]
[1721397311938,2.90655,3440.5,3439.5,2.90733]
[1721397312101,2.90655,3440.5,3439.6,2.90731]
[1721397312301,7.84671,3440.7,3439.7,2.90722]
[1721397313599,0.2024684,3440.8,3439.3,0.539943]
[1721397313919,0.2024684,3440.8,3439.9,2.90698]
[1721397314127,0.2024684,3440.8,3439.8,3.00712]
[1721397314335,3.1087684,3440.8,3440.0,2.90696]
[1721397314640,3.1087684,3440.8,3439.8,3.00712]
[1721397314843,2.4457,3440.5,3439.9,0.55]
[1721397315491,2.4457,3440.5,3439.9,3.45705]
[1721397315701,3.1088184,3440.8,3439.9,3.84430076]
[1721397315894,3.1088184,3440.8,3440.0,2.90696]
[1721397316101,0.2024684,3440.8,3440.0,2.90696]
[1721397316326,0.2024684,3440.8,3439.9,0.93725076]
[1721397316327,3.1087684,3440.8,3439.9,0.93725076]
[1721397316540,3.1087684,3440.8,3439.9,0.55]
[1721397316541,0.2024684,3440.8,3439.9,0.55]
[1721397317344,0.2024684,3440.8,3440.2,2.90678]
[1721397317538,0.2024684,3440.8,3440.3,0.55]
[1721397319411,0.2024684,3440.8,3440.3,3.45671]
[1721397319620,0.2024684,3440.8,3440.3,0.55]
[1721397319846,0.2024684,3440.8,3440.2,0.55]
[1721397320030,0.2024684,3440.8,3440.2,4.093191]
[1721397321625,0.2024684,3440.8,3440.5,2.90647]
[1721397321946,0.2024684,3440.8,3440.5,2.90653]
[1721397322157,0.2024684,3440.8,3440.6,3.4564]
[1721397322440,0.2024684,3440.8,3440.7,2.90638]
[1721397322441,0.1024684,3440.8,3440.7,2.90638]
[1721397322641,0.1024684,3440.8,3440.7,4.092671]
[1721397324049,0.1024684,3440.8,3440.7,1.186291]
[1721397325148,0.1024684,3440.8,3440.7,4.092671]
[1721397325451,0.1024684,3440.8,3440.7,1.186291]
[1721397325608,0.1024684,3440.8,3440.7,4.092671]
[1721397327051,0.0024684,3440.8,3440.7,4.092671]
[1721397327551,0.0024684,3440.8,3440.7,1.186291]
[1721397327709,0.0024684,3440.8,3440.7,4.092671]
[1721397330113,0.0024684,3440.8,3440.7,1.186291]
[1721397330461,0.0024684,3440.8,3440.3,2.90671]
[1721397330462,0.0024684,3440.8,3440.0,2.90697]
[1721397331255,0.0024684,3440.8,3440.0,2.90689]
[1721397331565,0.0024684,3440.8,3440.2,2.90679]
[1721397331712,0.0024684,3440.8,3439.8,0.1]
[1721397331713,0.0024684,3440.8,3440.0,2.90692]
[1721397331914,0.0024684,3440.8,3439.8,3.00708]
[1721397331915,2.90638,3440.7,3439.8,3.00708]
[1721397332109,2.90638,3440.7,3439.8,0.1]
[1721397332110,2.3386,3440.7,3439.8,0.1]
[1721397332414,2.90694,3440.1,3439.8,0.1]
[1721397333165,2.49,3440.6,3439.8,0.1]
[1721397333449,2.90698,3440.0,3439.8,0.1]
[1721397333652,2.9068,3440.2,3439.8,0.1]
[1721397334008,2.90689,3440.1,3439.8,0.1]
[1721397334769,2.90674,3440.3,3439.8,0.1]
[1721397335256,2.90688,3440.2,3439.8,0.1]
[1721397335414,2.90661,3440.5,3439.8,0.1]
[1721397335617,3.0,3440.6,3439.8,0.1]
[1721397335860,2.90663,3440.4,3439.8,0.1]
[1721397337047,2.90681,3440.2,3439.8,0.1]
[1721397337259,2.90655,3440.5,3439.8,0.1]
[1721397337428,2.90677,3440.3,3439.8,0.1]
[1721397338597,2.90655,3440.5,3439.8,0.1]
[1721397338765,0.0024684,3440.8,3439.8,0.1]
[1721397338766,0.0024684,3440.8,3439.9,2.90704]
[1721397338969,0.0024684,3440.8,3440.1,2.90688]
[1721397339553,0.0024684,3440.8,3440.4,2.90656]
[1721397339707,0.0024684,3440.8,3440.4,2.90659]
[1721397339872,0.0024684,3440.8,3440.5,2.90653]
[1721397340504,0.0024684,3440.8,3440.0,2.781204]
[1721397340811,0.0024684,3440.8,3440.2,2.90678]
[1721397341310,0.0024684,3440.8,3440.1,3.4856494]
[1721397342013,0.0024684,3440.8,3440.4,2.90662]
[1721397342665,0.0024684,3440.8,3440.2,3.4568]
[1721397342666,0.0024684,3440.8,3440.2,3.45674]
[1721397343067,0.0024684,3440.8,3440.3,2.9067]
[1721397343264,0.0024684,3440.8,3440.4,5.97225594]
[1721397343467,0.0024684,3440.8,3440.4,3.60085594]
[1721397343697,0.0024684,3440.8,3440.5,2.90655]
[1721397344078,0.0024684,3440.8,3440.6,2.90646]
[1721397344478,0.0024684,3440.8,3440.4,0.69422594]
[1721397344774,0.0024684,3440.8,3440.0,0.300704]
[1721397345006,0.0024684,3440.8,3440.3,2.90669]
[1721397345303,0.0024684,3440.8,3440.0,0.300704]
[1721397345607,0.0024684,3440.8,3440.2,2.90679]
[1721397345765,0.0024684,3440.8,3440.0,3.207674]
[1721397345766,0.0024684,3440.8,3440.0,2.90697]
[1721397346172,0.0024684,3440.8,3439.9,2.907]
[1721397346371,2.3954,3440.9,3440.0,3.798323]
[1721397346372,1.3978684,3440.9,3440.0,3.798323]
[1721397346567,3.70915436,3441.1,3440.1,2.90686]
[1721397346568,1.21915436,3441.1,3440.1,2.90686]
[1721397346794,6.95579396,3441.5,3440.6,2.90645]
[1721397347007,6.95579396,3441.5,3440.7,2.90634]
[1721397347008,2.8309196,3441.5,3440.7,2.90634]
[1721397347313,1.56007396,3441.5,3440.6,2.90645]
[1721397347496,1.56007396,3441.5,3440.7,2.90637]
[1721397347676,1.56007396,3441.5,3440.7,2.90638]
[1721397348006,0.3409196,3441.5,3440.8,2.90629]
[1721397348228,1.56007396,3441.5,3440.8,2.90629]
[1721397348703,1.56007396,3441.5,3440.7,0.581292]
[1721397348704,1.5220624,3441.7,3440.9,2.9062]
[1721397348922,4.0110714,3441.8,3440.9,2.9062]
[1721397349802,4.0110714,3441.8,3440.7,2.9063]
[1721397350018,1.5220624,3441.7,3440.8,2.44582511]
[1721397350216,2.4332,3442.5,3441.0,2.90607]
[1721397350217,4.4271824,3442.2,3441.0,2.90607]
[1721397350383,2.90521,3442.1,3441.2,2.9059]
[1721397350583,5.16049664,3442.1,3441.2,2.9059]
[1721397350784,0.73322424,3442.1,3441.2,2.9059]
[1721397350966,4.4271024,3442.3,3440.8,5.84396]
[1721397350967,1.5220624,3442.3,3440.8,5.84396]
[1721397351169,1.5220624,3442.4,3441.7,2.90548]
[1721397351376,4.4268624,3442.6,3441.7,2.90548]
[1721397351728,4.4268624,3442.6,3441.5,2.9057]
[1721397351729,5.39493,3442.5,3441.5,2.9057]
[1721397351871,6.91594872,3442.5,3441.5,2.9057]
[1721397352074,7.89802359,3442.5,3441.6,2.90562]
[1721397352284,2.90495,3442.4,3441.6,2.90562]
[1721397352668,1.52101872,3442.4,3441.6,2.90562]
[1721397352998,2.90495,3442.4,3441.3,2.90587]
[1721397353207,2.90495,3442.4,3441.5,2.9057]
[1721397353366,3.98523436,3442.4,3441.5,2.9057]
[1721397353975,3.47207487,3442.5,3441.6,2.90554]
[1721397354185,3.88700487,3442.5,3441.6,2.90554]
[1721397354423,2.90496,3442.4,3441.6,2.90554]
[1721397354609,2.90496,3442.4,3441.4,2.90578]
[1721397354791,2.90496,3442.4,3441.5,2.90569]
[1721397354979,2.90496,3442.4,3438.5,2.46578904]
[1721397354980,2.49,3442.0,3440.3,2.2998]
[1721397355311,4.82400424,3442.8,3441.6,2.90559]
[1721397355312,4.42472353,3442.7,3441.6,2.90559]
[1721397355537,4.42472353,3442.7,3440.9,2.2998]
[1721397355538,2.2575,3442.8,3441.2,2.90592]
[1721397355680,2.90479,3442.6,3441.1,2.90603]
[1721397355880,2.90495,3442.4,3441.4,2.90576]
[1721397356215,1.52000353,3442.9,3441.4,2.4046]
[1721397356416,12.90409387,3444.0,3441.7,2.4046]
[1721397356417,3.83210353,3443.7,3441.7,2.4046]
[1721397356592,3.83210353,3443.7,3442.3,2.90502]
[1721397356593,2.90418,3443.4,3442.3,2.90502]
[1721397356976,1.36347534,3443.8,3443.0,2.90437]
[1721397357183,0.1483824,3443.8,3442.5,2.4641]
[1721397357386,2.49,3443.6,3442.6,0.55]
[1721397357704,0.1483824,3443.8,3442.6,0.55]
[1721397357705,0.1483824,3443.8,3442.8,2.9046]
[1721397357928,0.1483824,3443.8,3443.3,2.90411]
[1721397358209,0.1483824,3443.8,3443.4,2.9041]
[1721397358421,0.1483824,3443.8,3443.5,2.90399]
[1721397358623,0.1483824,3443.8,3443.4,2.9041]
[1721397358624,0.1483824,3443.8,3442.9,2.3486]
[1721397358787,0.1483824,3443.8,3443.0,0.815001]
[1721397358972,2.49,3443.7,3442.7,0.30141]
[1721397359179,5.39386,3443.7,3442.7,0.30141]
[1721397359400,0.1483824,3443.8,3442.7,0.30141]
[1721397359619,0.1483824,3443.8,3442.7,3.2061]
[1721397360200,0.1483824,3443.8,3443.0,2.90441]
[1721397360386,0.1483824,3443.8,3443.1,2.90434]
[1721397360586,0.1483824,3443.8,3443.0,0.611051]
[1721397361082,0.1483824,3443.8,3442.3,2.4816]
[1721397361083,2.90446,3443.0,3441.9,2.90532]
[1721397361283,2.49,3443.2,3442.0,2.90527]
[1721397361284,5.39428,3443.2,3442.0,2.90527]
[1721397361485,2.49,3443.2,3442.1,2.90519]
[1721397361889,2.49,3443.2,3442.2,2.90511]
[1721397362090,2.90403,3443.5,3442.4,2.90494]
[1721397362289,5.49,3443.6,3442.4,2.90494]
[1721397362290,1.071613,3443.4,3442.5,2.90485]
[1721397362591,2.49,3443.6,3442.5,2.90485]
[1721397363037,2.49,3443.6,3442.3,2.905]
[1721397363532,2.49,3443.6,3441.5,3.56046]
[1721397363533,0.1483824,3443.8,3442.9,2.90446]
[1721397363703,0.1483824,3443.8,3443.1,2.90429]
[1721397364026,0.1483824,3443.8,3442.7,2.90464]
[1721397364240,0.1483824,3443.8,3443.1,2.90435]
[1721397364538,0.1483824,3443.8,3443.1,2.90433]
[1721397364832,0.1483824,3443.8,3443.2,2.90425]
[1721397365125,0.1483824,3443.8,3443.2,2.90426]
[1721397365498,0.1483824,3443.8,3443.0,2.90443]
[1721397365499,0.1483824,3443.8,3443.3,2.90418]
[1721397365699,0.1483824,3443.8,3443.4,2.9041]
[1721397365926,0.1483824,3443.8,3443.3,3.485041]
[1721397366127,0.1483824,3443.8,3443.4,2.90403]
[1721397366292,0.1483824,3443.8,3443.3,2.90418]
[1721397366293,0.1483824,3443.8,3443.5,2.90398]
[1721397366494,0.1483824,3443.8,3442.8,3.195004]
[1721397366495,0.1483824,3443.8,3443.4,2.90406]
[1721397366999,0.1483824,3443.8,3443.5,2.90399]
[1721397367200,0.1483824,3443.8,3442.8,0.290464]
[1721397367430,0.1483824,3443.8,3442.4,5.4249]
[1721397367431,0.1483824,3443.8,3443.2,2.9042]
[1721397367631,0.01,3445.0,3443.2,2.49]
[1721397367834,0.01,3445.0,3443.7,2.90383]
[1721397367835,2.90295,3444.8,3443.7,2.90383]
[1721397368005,2.91278,3445.0,3443.8,2.90376]
[1721397368209,0.01,3445.0,3443.5,2.3971]
[1721397368516,2.90294,3444.8,3443.7,2.90382]
[1721397368717,2.3171,3444.5,3443.3,37.92]
[1721397368919,5.39347,3444.2,3442.9,2.90452]
[1721397369103,2.49,3444.5,3443.1,2.90428]
[1721397369306,2.90329,3444.4,3443.0,0.290452]
[1721397369555,2.49,3444.6,3442.4,5.3971]
[1721397369556,2.49,3443.8,3442.6,2.90469]
[1721397369829,2.49,3443.8,3442.8,2.90458]
[1721397370042,2.4226,3444.1,3443.0,2.90444]
[1721397370043,5.32613,3444.1,3443.0,2.90444]
[1721397370207,2.49,3444.2,3443.3,2.9041]
[1721397370407,2.4863,3444.5,3443.4,2.96217368]
[1721397370611,2.90326,3444.4,3443.4,0.58662737]
[1721397370816,2.49,3444.2,3442.8,2.90457]
[1721397371137,2.49,3444.2,3442.5,2.90482]
[1721397371138,2.90368,3443.9,3442.5,2.90482]
[1721397371297,2.49,3444.2,3442.8,2.90457]
[1721397371298,2.90353,3444.1,3442.8,2.90457]
[1721397371498,2.90353,3444.1,3442.9,2.90452]
[1721397371748,2.49,3444.2,3442.6,0.55]
[1721397372028,2.90401,3443.6,3442.7,0.585189]
[1721397372233,5.3938,3443.8,3442.4,2.3971]
[1721397372807,2.49,3443.8,3442.7,2.90466]
[1721397373009,2.90395,3443.6,3442.4,2.90491]
[1721397373527,2.90388,3443.7,3442.1,2.90515]
[1721397373699,2.90419,3443.3,3441.9,2.90534]
[1721397374026,2.9043,3443.2,3442.0,0.810772]
[1721397374207,2.90437,3443.1,3442.0,0.810772]
[1721397374410,2.90419,3443.3,3442.1,35.0]
[1721397374609,2.90419,3443.3,3442.1,37.90519]
[1721397374807,2.49,3443.4,3442.6,2.90473]
[1721397375041,2.49,3443.4,3442.7,0.290473]
[1721397375200,2.49,3443.4,3442.4,2.90493]
[1721397375506,2.49,3443.4,3442.1,35.0]
[1721397375507,2.49,3443.4,3442.3,2.90503]
[1721397375713,2.49,3443.4,3442.6,2.90475]
[1721397375941,2.49,3443.4,3442.4,2.90494]
[1721397376109,2.49,3443.4,3442.5,2.90485]
[1721397376310,2.49,3443.4,3442.6,0.290485]
[1721397377327,2.49,3443.4,3442.3,2.905]
[1721397377654,2.90419,3443.3,3442.4,3.45494]
[1721397377813,2.90431,3443.2,3442.2,2.90509]
[1721397378009,2.9042,3443.3,3442.1,37.90516]
[1721397378205,2.9042,3443.3,3442.2,2.90511]
[1721397378410,2.9042,3443.3,3442.3,2.90501]
[1721397378844,2.9042,3443.3,3442.1,35.0]
[1721397378845,5.3985,3443.9,3442.2,0.05809129]
[1721397379037,2.90379,3443.8,3442.7,2.90465]
[1721397379248,2.90361,3444.0,3442.8,35.0]
[1721397379555,2.4718,3444.4,3442.8,35.0]
[1721397379556,5.39344,3444.2,3442.9,2.90445]
[1721397379867,2.90344,3444.2,3442.9,3.45445]
[1721397380177,2.4718,3444.4,3442.9,3.45445]
[1721397380178,2.4718,3444.4,3443.0,35.05807761]
[1721397380456,0.01,3445.0,3443.6,2.90385]
[1721397380457,5.37464,3444.9,3443.6,2.90385]
[1721397380664,5.37464,3444.9,3444.1,2.90351]
[1721397380665,2.4718,3444.9,3444.1,2.90351]
[1721397380811,0.01,3445.0,3443.9,2.90367]
[1721397381014,2.91282,3445.0,3444.0,35.0]
[1721397381253,0.01,3445.0,3444.0,35.0]
[1721397381549,0.01,3445.0,3444.2,2.90343]
[1721397381911,0.01,3445.0,3444.3,2.90334]
[1721397382110,0.01,3445.0,3444.6,2.90304]
[1721397382325,0.01,3445.0,3444.4,2.90322]
[1721397382524,2.49,3444.9,3444.0,35.0]
[1721397383160,2.49,3444.5,3444.0,35.0]
[1721397383322,5.39318,3444.5,3443.4,2.90409]
[1721397383728,2.49,3443.7,3442.9,5.80897]
[1721397384029,2.49,3443.7,3442.4,5.26514]